Cogmind - Beta 17 @@@ ROGUE MODE // 2026.07.04 @ 14:05:36 Player: Nalesnig Result: Destroyed by Autobeam Turret with Autobeam Performance ------------- Evolutions (0) 0 Regions Visited (2) 400 Robots Destroyed (27) 135 Value Destroyed (522) 522 Prototype IDs (2) 40 Alien Tech Used (0) 0 Bonus (5600) 5600 TOTAL SCORE: 6697 Bonus ------- Prayed to X0-1V1 5000 Major X0-1V1 Interference 600 Cogmind --------- Core Integrity 0/250 Matter 171/300 Energy 74/100 System Corruption 0% Temperature Cool (18) Movement Rolling (100) Location -10/Subcaves Parts ------- > --- POWER (1) -------- (None) > --- PROPULSION (2) --- Compact Wheel Compact Wheel > --- UTILITY (2) ------ Medium Storage Unit > --- WEAPON (2) ------- (None) > --- INVENTORY (10) --- Light Ion Engine Light Ion Engine Small Storage Unit Light Armor Plating Light Armor Plating Peak State ------------ > --- POWER ------------ Light Nuclear Core > --- PROPULSION ------- Light Treads Light Treads > --- UTILITY ---------- Medium Storage Unit X0-1V1's Piety Tracker > --- WEAPON ----------- Assault Rifle Improved Light Cannon > --- INVENTORY -------- Light Ion Engine Light Ion Engine Compact Wheel Compact Wheel Small Storage Unit Light Armor Plating [Rating: 22] Favorites ----------- Power Light Nuclear Core Engine Ion Engine Power Core Light Nuclear Core Propulsion Light Treads Treads Light Treads Wheel Compact Wheel Utility Medium Storage Unit Device Seismic Detector Storage Medium Storage Unit Protection Light Armor Plating Weapon Assault Rifle Energy Gun Improved EM Shotgun Ballistic Gun Assault Rifle Ballistic Cannon Improved Light Cannon Build | -11 -10 -10 ------- Run | Yrd Mat Sub Slots Evolved . | . . . Power . | . . . Propulsion . | . . . Utility . | . . . Weapon . | . . . Parts Attached 17 | 7 8 2 Power 3 | 1 2 . Engine 2 | 1 1 . Core 1 | . 1 . Reactor . | . . . Propulsion 4 | 2 . 2 Treads 2 | 2 . . Leg . | . . . Wheel 2 | . . 2 Hover . | . . . Flight . | . . . Utility 5 | 2 3 . Device 2 | 1 1 . Storage 2 | 1 1 . Processor . | . . . Hackware . | . . . Protection 1 | . 1 . Artifact . | . . . Weapon 5 | 2 3 . Energy Gun 1 | . 1 . Energy Cannon . | . . . Ballistic Gun 3 | 2 1 . Ballistic Cannon 1 | . 1 . Launcher . | . . . Special Weapon . | . . . Impact Weapon . | . . . Slashing Weapon . | . . . Piercing Weapon . | . . . Special Melee Weapon . | . . . Unidentified Prototypes 2 | . 2 . Parts Lost 9 | . 3 6 Power 2 | . 1 1 Propulsion 2 | . . 2 Utility 2 | . 1 1 Weapon 3 | . 1 2 Highest Loss Streak 6 | . 1 6 To Critical Strikes . | . . . Average Backups 5 | 2 5 6 Power 1 | . 1 2 Propulsion 1 | 1 2 1 Utility 1 | . 1 3 Weapon . | . . . Tool/Special . | . . . Unused Backups 2 | . . 2 Power 1 | . . 1 Propulsion . | . . . Utility 1 | . . 1 Weapon . | . . . Tool/Special . | . . . Average Slot Usage (%) 93 | . 93 94 Engine 3 | . 4 . Core 10 | . 9 12 Treads 27 | . 27 25 Device 2 | . 1 12 Storage 14 | . 14 14 Protection 6 | . 7 . Ballistic Gun 17 | . 18 12 Ballistic Cannon 9 | . 9 12 Peak Build Rating 22 | 7 22 22 Average Rating 9 | 4 8 20 On Entrance 9 | . 7 22 Avg Prop Armor Cover (%) . | . . . Naked Turns . | . . . Heaviest Build 24 | 15 24 22 Greatest Support 40 | 40 40 40 Greatest Overweight (x) 6 | 1 6 . Average Overweight (x) . | . . . Largest Inventory Capacity 10 | 8 10 10 Average Capacity 9 | 7 9 10 Most Carried 7 | 4 7 7 Average Carried 5 | 3 5 6 Final Capacity 10 | 8 10 10 Final Carried 7 | 4 7 5 Class Distribution -------------------- 100% | Mutant Dominant Class ---------------- Mutant | -10/Materials Mutant | -10/Subcaves Resources | -11 -10 -10 ----------- Run | Yrd Mat Sub Matter Collected 747 | 219 528 . Remotely . | . . . Salvage Created 728 | 23 685 20 Parts 64 | 2 58 4 Haulers Intercepted 1 | . 1 . Recyclers Shooed . | . . . Parts Field Recycled . | . . . Retrieved Matter . | . . . Parts Self-Destructed 2 | . . 2 Prevented . | . . . Parts Restored . | . . . Kills | -11 -10 -10 ------- Run | Yrd Mat Sub Combat Hostiles Destroyed 20 | . 19 1 Guns 16 | . 15 1 Cannons 4 | . 4 . Classes Destroyed 7 | 1 6 . Builder 1 | . 1 . Tunneler 2 | 1 1 . Hauler 1 | . 1 . Recycler 1 | . 1 . Watcher 2 | . 2 . Swarmer 10 | . 9 1 Grunt 10 | . 10 . Best Kill Streak 6 | 1 6 1 Combat Bots Only 5 | . 5 1 Max Kills in Single Turn 2 | 1 2 1 Gunslinging . | . . . Exploded . | . . . Melee . | . . . Uniques/NPCs Destroyed . | . . . Combat | -11 -10 -10 -------- Run | Yrd Mat Sub Hostile Shots Fired 155 | . 99 56 Missed 40 | . 29 11 Hits 115 | . 70 45 Projectile 115 | . 70 45 Damage Taken 1084 | . 736 348 Core 250 | . 103 147 Absorbed by Shields . | . . . Core Remaining (%) 100 | 100 . . Volleys Fired 81 | 1 77 3 Largest 2 | 2 2 2 Hottest 53 | 40 53 53 Shots Fired 158 | 2 151 5 Gun 131 | 2 125 4 Cannon 27 | . 26 1 Launcher . | . . . Special . | . . . Kinetic 158 | 2 151 5 Thermal . | . . . Explosive . | . . . Electromagnetic . | . . . Robot Hit Streak 8 | . 8 1 Robot Miss Streak 7 | 2 7 7 Penetration Max . | . . . Secondary Targets 1 | . 1 . Max Gunslinging Chain 1 | . 1 . Shots Hit Robots 81 | . 79 2 Core Hits 38 | 1 36 1 Critical Kills . | . . . Critical Parts Destroyed . | . . . Critical Strikes . | . . . Melee Attacks . | . . . Impact . | . . . Slashing . | . . . Piercing . | . . . Sneak Attacks . | . . . Combat Hostiles . | . . . Follow-up Attacks . | . . . Damage Inflicted 1276 | 15 1215 46 Guns 937 | 15 898 24 Cannons 339 | . 317 22 Explosions . | . . . Melee . | . . . Ramming . | . . . Kinetic 1276 | 15 1215 46 Thermal . | . . . Explosive . | . . . Electromagnetic . | . . . Impact . | . . . Slashing . | . . . Piercing . | . . . Highest Corruption . | . . . Average Corruption . | . . . Corruption Purged . | . . . Corruption Blocked . | . . . Overload Shots . | . . . Overflow Damage 3 | . 3 . Projectiles 3 | . 3 . Explosions . | . . . Melee . | . . . Knockbacks 9 | . 9 . Impact . | . . . Kinetic 7 | . 7 . Secondary 2 | . 2 . Self-Inflicted Damage . | . . . Shots . | . . . Rammed . | . . . Targets Rammed . | . . . Kicked . | . . . Crushed . | . . . Highest Temperature 374 | . 374 12 Average Temperature 71 | . 72 10 Received Heat Transfer 387 | . 243 144 Effects 2 | . 2 . Shutdowns 1 | . 1 . Interference 1 | . 1 . Siege Activations . | . . . Martial Activations . | . . . Shielding Activations . | . . . Robots Disrupted . | . . . Combat Hostiles . | . . . Robots Corrupted . | . . . Combat Hostiles . | . . . Parts Fried . | . . . Impact Corruptions . | . . . Robots Melted . | . . . Combat Hostiles . | . . . Parts Melted . | . . . Heat Transferred . | . . . Parts Sabotaged . | . . . Parts Stolen . | . . . Parts Stripped . | . . . Power Chain Reactions . | . . . Alert | -11 -10 -10 ------- Run | Yrd Mat Sub Maximum Alert Level 1 | . 1 . Low Security (%) 91 | 100 90 . Level 1 8 | . 9 . Level 2 . | . . . Level 3 . | . . . Level 4 . | . . . Level 5 . | . . . High Security . | . . . Max Security . | . . . Peak Influence 282 | 5 282 . Initial . | . . . Average 82 | . 88 . Influence Increases 570 | 5 530 35 Destroy 0b10 Robot/C 400 | . 380 20 Destroy 0b10 Robot/NC 35 | 5 30 . Destroy Leader 86 | . 86 . Successful Hack 2 | . 2 . Disable Machine 15 | . 15 . Destroy Structure 2 | . 2 . Lose Combat Pursuer 30 | . 15 15 Influence Decreases 555 | 5 530 20 Time Decay 355 | 5 350 . Lost Part 50 | . 30 20 Purge Threat 150 | . 150 . Squads Dispatched 4 | . 4 . Investigation 1 | . 1 . Extermination . | . . . Reinforcement 3 | . 3 . Assault . | . . . Garrison . | . . . Intercept . | . . . Searches Triggered . | . . . Construction Impeded . | . . . Haulers Reinforced . | . . . Active Scanning Responses . | . . . Cargo Convoy Interrupts . | . . . Stealth | -11 -10 -10 --------- Run | Yrd Mat Sub Distress Signals 4 | . 4 . Communications Jammed . | . . . Distress Signals . | . . . Times Spotted 36 | . 28 8 Peak Tracking Total 6 | . 5 6 Tactical Retreats 2 | . 1 1 Traps | -11 -10 -10 ------- Run | Yrd Mat Sub Traps Triggered 3 | . 3 . Indirectly . | . . . Trap Hack Attempts . | . . . Triggered . | . . . Disarmed . | . . . Reprogrammed . | . . . Reused . | . . . Traps Extracted . | . . . Installed . | . . . Triggered . | . . . Machines | -11 -10 -10 ---------- Run | Yrd Mat Sub Machines Disabled 1 | . 1 . Max in Single Turn 1 | . 1 . Machines Repaired . | . . . Machines Dismantled . | . . . Machines Sabotaged . | . . . Overloaded Fab Kills . | . . . Hacking | -11 -10 -10 --------- Run | Yrd Mat Sub Machines Accessed 4 | . 4 . Terminals 3 | . 3 . Fabricators . | . . . Repair Stations . | . . . Recycling Units 1 | . 1 . Scanalyzers . | . . . Garrison Access . | . . . Total Hacks 10 | . 10 . Successful 5 | . 5 . Failed 5 | . 5 . Catastrophic . | . . . Database Lockouts . | . . . Manual 3 | . 3 . Terminals 9 | . 9 . Fabricators . | . . . Repair Stations . | . . . Recycling Units 1 | . 1 . Scanalyzers . | . . . Garrison Access . | . . . Terminal Hacks 3 | . 3 . Unreport Threat 1 | . 1 . Maintenance Status 1 | . 1 . Hauler Manifests 1 | . 1 . Fabricator Hacks . | . . . Repair Station Hacks . | . . . Recycling Unit Hacks 1 | . 1 . Retrieve Components 1 | . 1 . Scanalyzer . | . . . Garrison Access Hacks . | . . . Unauthorized Hacks 1 | . 1 . Terminals 1 | . 1 . Botnet 1 | . 1 . Fabricators . | . . . Repair Stations . | . . . Recycling Units . | . . . Scanalyzers . | . . . Garrison Access . | . . . Data Cores Recovered . | . . . Used . | . . . Hacking Detections 3 | . 3 . Full Trace Events 1 | . 1 . Feedback Events . | . . . Feedback Blocked . | . . . Robot Schematics Acquired . | . . . Robots Built . | . . . Authchips . | . . . Time . | . . . Total Robot Build Rating . | . . . Part Schematics Acquired . | . . . Parts Built . | . . . Authchips . | . . . Time . | . . . Total Part Build Rating . | . . . Part Studies Acquired . | . . . Parts Repaired . | . . . Time . | . . . Parts Recycled . | . . . Recycled Matter . | . . . Retrieved Matter . | . . . Retrieved Components 7 | . 7 . Parts Scanalyzed . | . . . Part Schematics Acquired . | . . . Parts Damaged . | . . . Bothacking | -11 -10 -10 ------------ Run | Yrd Mat Sub Used RIF Installer . | . . . Robots Hacked . | . . . Non-combat . | . . . Combat . | . . . Robot Hacks Applied . | . . . Relay Couplers Released . | . . . Fabnet Peak Effective % . | . . . Robots Rewired . | . . . Allies Hacked . | . . . Hacks Repelled . | . . . Allies | -11 -10 -10 -------- Run | Yrd Mat Sub Total Allies . | . . . Largest Group . | . . . Highest-Rated Group . | . . . Highest-Rated Ally . | . . . Total Orders . | . . . Ally Attacks . | . . . Total Damage . | . . . Kills . | . . . Allies Corrupted . | . . . Allies Melted . | . . . X0-1V1 Amusement Gains 61 | . 11 50 Good Acts 1 | . . 1 Bad Acts 3 | . . 3 Intel | -11 -10 -10 ------- Run | Yrd Mat Sub Active Infowar (turns) 108 | 5 103 . Seismic 108 | 5 103 . Robot Analysis Total . | . . . Derelict Logs Recovered . | . . . Drone Launches . | . . . Drone Recoveries . | . . . Exploration | -11 -10 -10 ------------- Run | Yrd Mat Sub Turns Passed 1111 | 65 950 96 Spaces Moved 318 | 33 229 56 Core 8 | 6 2 . Treads 307 | 27 227 53 Legs . | . . . Wheels 3 | . . 3 Hover . | . . . Flight . | . . . Fastest Speed 50 | 50 160 100 Average Speed 158 | 143 161 156 Slowest Speed 350 | 160 350 160 Overloaded Moves . | . . . Propulsion Burnouts . | . . . Robots Hopped . | . . . Potential Cave-ins . | . . . Cave-ins Triggered . | . . . Exploration Rate (%) 26 | 4 66 8 Regions Visited 2 Branch Regions 1 Pre-discovered Areas . | . . . Known Exits Taken . | . . . Unknown Exits Taken 2 | 1 1 . Scrap Searched . | . . . Spaces Dug . | . . . Terrain Destroyed 2 | . 2 . Melee . | . . . Projectile 2 | . 2 . AOE . | . . . Terrain Rammed . | . . . Walls Destroyed . | . . . Machines Disabled . | . . . Actions | -11 -10 -10 --------- Run | Yrd Mat Sub Total 760 | 45 654 61 Wait 333 | 1 332 . Move 316 | 32 228 56 Hop . | . . . Pick Up 7 | 4 3 . Fast Attach 14 | 7 7 . Attach 4 | . 2 2 Detach . | . . . Swap 4 | . 4 . Drop 1 | . 1 . Fire 81 | 1 77 3 Melee . | . . . Ram . | . . . Kick . | . . . Crush . | . . . Escape Stasis . | . . . Rewire . | . . . Trap . | . . . Miscellaneous . | . . . Route ------- -11/Scrapyard -10/Materials (discovered 3 exits: [*Mat] / [*Min] / [*Sub]) -10/Subcaves (discovered 1 exit: [*Rec]) History --------- Turn | Location | Event 14 | -11/Scrapyard | Discovered new exit (range 15) 66 | -11/Scrapyard | Entered Materials 325 | -10/Materials | Discovered new exit (range 16) 328 | -10/Materials | Build established: Mutant 614 | -10/Materials | Discovered new exit (range 15) 877 | -10/Materials | Discovered new exit (range 13) 1002 | -10/Materials | Prayed at D.C.S.S. Altar Unit 1016 | -10/Materials | Entered Subcaves 1100 | -10/Subcaves | Discovered new exit (range 6) 1100 | -10/Subcaves | X0-1V1 sent you into danger 1105 | -10/Subcaves | Core integrity fell below 50% 1112 | -10/Subcaves | Core integrity fell below 20% 1112 | -10/Subcaves | X0-1V1 upgraded hostiles (x2) 1112 | -10/Subcaves | Destroyed by Autobeam Turret with Autobeam Last Messages --------------- 01100_ S-10 Pest springs to life. 01100_ Lgt. Treads destroyed. 01101_ S-10 Pest springs to life. 01101_ S-10 Pest destroyed. 01102_ Imp. Light Cannon destroyed. 01104_ X0-1V1's Piety Tracker destroyed. 01104_ X0-1V1 is mildly amused. 01104_ Lgt. Treads destroyed. 01104_ Lgt. Nuclear Core destroyed. 01105_ Lgt. Assault Rifle fries itself beyond repair. 01105_ X0-1V1 is amused. 01106_ Assault Rifle destroyed. 01106_ X0-1V1 is amused. 01108_ X0-1V1 stares into the ether. Autobeam Turret form shifts and blurs. 01110_ Flight Unit fries itself beyond repair. 01111_ Subatomizers dissect the Lgt. Ion Engine. 01112_ X0-1V1 tips the scales in a new dimension. S-10 Pest reshaped into more powerful Swarmer. 01112_ X0-1V1 guffaws! Map ----- +----------------------------------------------------+ | ?????????????????????????????????????????????????? | | ?????????????????????????????????????????????????? | | ?????????????????????????????????????????????????? | | ?????????????????????????????????????????????????? | | ?????????????????????????????????????????????????? | | ?????????????????????????????????????????????????? | | ?????????????????????????????????????????????????? | | ?????????????????????????????????????????????????? | | ?????????????????????????????????????????????????? | | ?????????????????????????????????????????????????? | | ?????????????????????????????????????????????????? | | ?????????????????????????????????????????????????? | | ?????????????????????????????????????????????????? | | ?????????????????????????????????????????????????? | | ?????????????????????????????????????????????????? | | ?????????????????????????????????????????????????? | | ?????????????????????????????????????????????????? | | ?????????????????????????????????????????????????? | | ?????????????????????????????????????????????????? | | ?????????????????????????????????????????????????? | | ?????????????????????????????????????????????????? | | ?????????????????########????????????????????????? | | ?????????????????#"""% "#????????????????????????? | | ?????????????????#" * = #????????????????????????? | | ?????????????????#" % #### #### ????????? | | ?????????????????#""t @ ????????? | | ????????????????#< ????????? | | ????????????????##"" s ????????? | | ?????????????????#" s ########## ?????????? | | ????????????? ???#" #???????????? #?????????? | | ??????????? ???#""" "#???????????? ####??????? | | ???????????# ???########????????????# ##?????? | | ???????????# #??????????????????????# #?????? | | ???????????? #?????????????##??????# #?????? | | ???????????? ##??????????## #?????# #?????? | | ????????????? #????????### #?????# #?????? | | ?????????????# ##??????## ####### #?????? | | ????????????## # ??????? #???###? | | ????????????# ??????????# ##### ## | | ???????????## ??????????# # # # | | ???????????# ##???????#### | | ???????????# ##?###### # | | ??????????## ### ### # # | | ?????# % ## % ##?## ###### | | ?????# # ###### ###???###????## | | ?????# % ####????###?????????????#### | | ????# %## #??????????????????????????? | | ????# ### ###% #?????????????????????????? | | ???# #????###??## %%#????????????????????????? | | ???##?????????????## #????????????????????????? | +----------------------------------------------------+ Best States ------------- Heat Dissipation 25 Energy Generation 14 Energy Capacity 250 Matter Stores 291 Matter Capacity 300 Sight Range 16 Terrain Scan Density 10 Armor Coverage 150 Evasion (%) 40 Recoil Reduction 2 Item Schematics ----------------- None Robot Schematics ------------------ None Fabricated ------------ Nothing Repaired ---------- Nothing Studied --------- None Alien Tech Used ----------------- None Achievements -------------- None Challenges ------------ None Game ------ Seed WaveLatentDriveblaster Manual? 0 Play Time 00:07:14 Cumulative 90.8 hours Start 2026.07.04 @ 13:59:08 End 2026.07.04 @ 14:05:36 Sessions 1 Manual Loads 0 Difficulty Rogue Special Mode None Game No. 87 Rogue 87 Adventurer 0 Explorer 0 Win Type - Total 3 Types 2/0/1/0/0/0/0/0/0/0 Lore% 63 Gallery% 49 Achievement% 42 Wizard Run 0 Options --------- Layout 1 ASCII 0 Keyboard 0 Movement Mouse Keybinds 0 Fullscreen 1 Font 32/SmallcapsGlow Map View 77x35 Zoom Use 0% Tactical HUD 1 Map Filters NONE Filters NONE Steam 1 RUN: 885009a6-a4eb-44fe-ab21-3c33c8c359a0